[Event "*** Titled Tuesday Blitz"]
[Site "Chess.com"]
[Date "2020.12.29"]
[Round "1"]
[White "serhanberat_ozdemir"]
[Black "Jungle_Jaguar"]
[Result "0-1"]
[WhiteElo "2316"]
[BlackElo "2611"]
[TimeControl "180+1"]
[EndTime "10:08:30 PST"]
[Termination "Jungle_Jaguar won on time"]

1. e4 {[%clk 0:03:00.3]} 1... e5 {[%clk 0:02:58.4]} 2. Nf3 {[%clk 0:03:00.7]}
2... Nc6 {[%clk 0:02:58.7]} 3. d4 {[%clk 0:03:01.3]} 3... exd4 {[%clk
0:02:59.6]} 4. Bc4 {[%clk 0:03:01.5]} 4... Nf6 {[%clk 0:02:58.6]} 5. e5 {[%clk
0:03:01.9]} 5... Ne4 {[%clk 0:02:59]} 6. Bb5 {[%clk 0:03:02.5]} 6... Bc5 {[%clk
0:02:56]} 7. O-O {[%clk 0:02:57.1]} 7... O-O {[%clk 0:02:55.2]} 8. Nbd2 {[%clk
0:02:11]} 8... Nxd2 {[%clk 0:02:51.5]} 9. Bxd2 {[%clk 0:02:11.9]} 9... a6 {[%clk
0:02:50.4]} 10. Bd3 {[%clk 0:02:08.5]} 10... d6 {[%clk 0:02:49.4]} 11. Bg5
{[%clk 0:02:07.2]} 11... Qd7 {[%clk 0:02:45.3]} 12. Re1 {[%clk 0:02:07.6]} 12...
dxe5 {[%clk 0:02:44]} 13. Nxe5 {[%clk 0:02:06.8]} 13... Nxe5 {[%clk 0:02:43.5]}
14. Rxe5 {[%clk 0:02:07.6]} 14... Bd6 {[%clk 0:02:42.3]} 15. Re4 {[%clk
0:02:02.3]} 15... h6 {[%clk 0:02:32.3]} 16. Rh4 {[%clk 0:01:57.4]} 16... f5
{[%clk 0:02:21.2]} 17. Bc4+ {[%clk 0:01:54.2]} 17... Kh7 {[%clk 0:02:19.1]} 18.
Qd2 {[%clk 0:01:48.8]} 18... Be7 {[%clk 0:02:13]} 19. Bxe7 {[%clk 0:01:38.6]}
19... Qxe7 {[%clk 0:02:13.8]} 20. Rxd4 {[%clk 0:01:36]} 20... Qf6 {[%clk
0:02:05.4]} 21. Re1 {[%clk 0:01:33.2]} 21... c5 {[%clk 0:02:02.6]} 22. Rd6
{[%clk 0:01:29]} 22... Qxb2 {[%clk 0:01:56.7]} 23. Re7 {[%clk 0:01:26.1]} 23...
Qa1+ {[%clk 0:01:52.7]} 24. Bf1 {[%clk 0:01:17.3]} 24... Rf6 {[%clk 0:01:49.8]}
25. Rd8 {[%clk 0:00:52.7]} 25... Rb6 {[%clk 0:01:35.8]} 26. Ree8 {[%clk
0:00:47.8]} 26... Rc6 {[%clk 0:01:11.2]} 27. Qd5 {[%clk 0:00:27.1]} 27... Qf6
{[%clk 0:01:09.8]} 28. Qg8+ {[%clk 0:00:11.5]} 28... Kg6 {[%clk 0:01:09.7]} 29.
Re3 {[%clk 0:00:12.4]} 29... f4 {[%clk 0:01:01.3]} 30. Bd3+ {[%clk 0:00:12.3]}
30... Bf5 {[%clk 0:01:01.8]} 31. Bxf5+ {[%clk 0:00:05.4]} 31... Kxf5 {[%clk
0:01:02.7]} 32. Qd5+ {[%clk 0:00:04.4]} 32... Kg6 {[%clk 0:01:01.2]} 33. Qd3+
{[%clk 0:00:04.5]} 33... Kf7 {[%clk 0:00:53]} 34. Rd7+ {[%clk 0:00:03.8]} 34...
Kf8 {[%clk 0:00:51.5]} 35. Ree7 {[%clk 0:00:04.1]} 35... Qa1+ {[%clk 0:00:49.9]}
36. Qf1 {[%clk 0:00:04.7]} 36... Qf6 {[%clk 0:00:40]} 37. Rf7+ {[%clk
0:00:03.1]} 37... Qxf7 {[%clk 0:00:40]} 38. Rxf7+ {[%clk 0:00:04]} 38... Kxf7
{[%clk 0:00:40.9]} 39. Qc4+ {[%clk 0:00:04.6]} 39... Kf8 {[%clk 0:00:38.9]} 40.
Qxf4+ {[%clk 0:00:05]} 40... Kg8 {[%clk 0:00:39.4]} 41. Qc4+ {[%clk 0:00:04.9]}
41... Kh8 {[%clk 0:00:39.2]} 42. h4 {[%clk 0:00:05.6]} 42... Rd8 {[%clk
0:00:37.9]} 43. a4 {[%clk 0:00:05.2]} 43... Rd4 {[%clk 0:00:35.2]} 44. Qf7
{[%clk 0:00:03]} 44... Rxh4 {[%clk 0:00:34.2]} 45. Qf8+ {[%clk 0:00:03.2]} 45...
Kh7 {[%clk 0:00:34.7]} 46. Qf5+ {[%clk 0:00:03.6]} 46... Rg6 {[%clk 0:00:35.2]}
47. g3 {[%clk 0:00:02.7]} 47... Rxa4 {[%clk 0:00:33.4]} 48. Kg2 {[%clk
0:00:02.9]} 48... Rb4 {[%clk 0:00:30.8]} 49. Qxc5 {[%clk 0:00:03.3]} 49... Rb5
{[%clk 0:00:30.5]} 50. Qc4 {[%clk 0:00:02.6]} 50... h5 {[%clk 0:00:25.2]} 51.
Qe4 {[%clk 0:00:02.9]} 51... Kh6 {[%clk 0:00:25.2]} 52. Qf4+ {[%clk 0:00:02.9]}
52... Rgg5 {[%clk 0:00:24.9]} 53. Kh3 {[%clk 0:00:03.1]} 53... Rf5 {[%clk
0:00:23.3]} 54. Qe3 {[%clk 0:00:02.6]} 54... Rf6 {[%clk 0:00:20.3]} 55. Qd4
{[%clk 0:00:01.9]} 55... b6 {[%clk 0:00:20.2]} 56. Qe3 {[%clk 0:00:02.5]} 56...
a5 {[%clk 0:00:20.5]} 57. Qe2 {[%clk 0:00:03.2]} 57... Rgf5 {[%clk 0:00:20.5]}
58. f4 {[%clk 0:00:02.6]} 58... a4 {[%clk 0:00:20.3]} 59. Kh4 {[%clk 0:00:02.4]}
59... Ra5 {[%clk 0:00:20]} 60. Qe3 {[%clk 0:00:02.4]} 60... a3 {[%clk
0:00:20.3]} 61. f5+ {[%clk 0:00:02.9]} 61... Kh7 {[%clk 0:00:20.7]} 62. Qg5
{[%clk 0:00:03.6]} 62... Raxf5 {[%clk 0:00:20.6]} 63. Qe3 {[%clk 0:00:02.2]}
63... a2 {[%clk 0:00:20.6]} 64. Qa3 {[%clk 0:00:02.6]} 64... Ra5 {[%clk
0:00:20.9]} 65. Qd3+ {[%clk 0:00:03.3]} 65... Rg6 {[%clk 0:00:20.8]} 0-1

[Event "*** Titled Tuesday Blitz"]
[Site "Chess.com"]
[Date "2020.12.29"]
[Round "1"]
[White "NaciSAN"]
[Black "NeverW84M8"]
[Result "1-0"]
[WhiteElo "2160"]
[BlackElo "2498"]
[TimeControl "180+1"]
[EndTime "10:08:31 PST"]
[Termination "NaciSAN won by resignation"]

1. e4 {[%clk 0:03:00.9]} 1... e5 {[%clk 0:03:00.4]} 2. Nf3 {[%clk 0:03:01]} 2...
Nc6 {[%clk 0:03:00.9]} 3. Bb5 {[%clk 0:03:01.2]} 3... Nf6 {[%clk 0:03:00.3]} 4.
O-O {[%clk 0:03:00.8]} 4... Nxe4 {[%clk 0:03:00.8]} 5. Re1 {[%clk 0:03:01.1]}
5... Nd6 {[%clk 0:03:01.3]} 6. Nxe5 {[%clk 0:03:01.3]} 6... Be7 {[%clk
0:03:01.1]} 7. Bf1 {[%clk 0:02:58.1]} 7... Nf5 {[%clk 0:02:59.5]} 8. c3 {[%clk
0:02:54.1]} 8... Nxe5 {[%clk 0:02:59]} 9. Rxe5 {[%clk 0:02:53.6]} 9... d6 {[%clk
0:02:59.7]} 10. Re1 {[%clk 0:02:53.4]} 10... O-O {[%clk 0:02:58.4]} 11. d4
{[%clk 0:02:52.5]} 11... d5 {[%clk 0:02:58.9]} 12. Bd3 {[%clk 0:02:52.1]} 12...
g6 {[%clk 0:02:57.9]} 13. Qf3 {[%clk 0:02:41.6]} 13... c6 {[%clk 0:02:57]} 14.
Nd2 {[%clk 0:02:36.6]} 14... Ng7 {[%clk 0:02:56.2]} 15. Nf1 {[%clk 0:02:33.9]}
15... Bf5 {[%clk 0:02:55.9]} 16. Bh6 {[%clk 0:02:31]} 16... Bxd3 {[%clk
0:02:55.1]} 17. Qxd3 {[%clk 0:02:31.9]} 17... Re8 {[%clk 0:02:55.4]} 18. Re2
{[%clk 0:02:26.6]} 18... Bf6 {[%clk 0:02:28.3]} 19. Rae1 {[%clk 0:02:22.2]}
19... Qd7 {[%clk 0:02:28]} 20. h3 {[%clk 0:02:17.9]} 20... Re6 {[%clk
0:02:19.9]} 21. Bxg7 {[%clk 0:02:14.4]} 21... Rxe2 {[%clk 0:02:19.4]} 22. Qxe2
{[%clk 0:02:13.7]} 22... Kxg7 {[%clk 0:02:19.1]} 23. Nd2 {[%clk 0:02:11.1]}
23... h5 {[%clk 0:02:05.9]} 24. Nf3 {[%clk 0:02:10.2]} 24... Qf5 {[%clk
0:02:06]} 25. b4 {[%clk 0:01:47.7]} 25... Rc8 {[%clk 0:01:57.4]} 26. a4 {[%clk
0:01:46.5]} 26... Rc7 {[%clk 0:01:51.5]} 27. a5 {[%clk 0:01:43.8]} 27... Re7
{[%clk 0:01:50.4]} 28. Qd1 {[%clk 0:01:43.8]} 28... Re4 {[%clk 0:01:45.1]} 29.
Re2 {[%clk 0:01:15.9]} 29... a6 {[%clk 0:01:40.5]} 30. Qe1 {[%clk 0:01:14.1]}
30... Rxe2 {[%clk 0:01:31.8]} 31. Qxe2 {[%clk 0:01:13.6]} 31... Qb1+ {[%clk
0:01:32.4]} 32. Kh2 {[%clk 0:01:09.5]} 32... Qe4 {[%clk 0:01:32.3]} 33. Qxe4
{[%clk 0:01:01.6]} 33... dxe4 {[%clk 0:01:30.4]} 34. Nd2 {[%clk 0:01:02.1]}
34... Be7 {[%clk 0:01:25.4]} 35. Nxe4 {[%clk 0:01:00.8]} 35... f5 {[%clk
0:01:25.6]} 36. Nc5 {[%clk 0:00:57.7]} 36... Bxc5 {[%clk 0:01:25.4]} 37. dxc5
{[%clk 0:00:56.1]} 37... f4 {[%clk 0:01:17.8]} 38. g3 {[%clk 0:00:29.6]} 38...
f3 {[%clk 0:01:05.6]} 39. g4 {[%clk 0:00:29.1]} 39... h4 {[%clk 0:01:05.1]} 40.
Kg1 {[%clk 0:00:28]} 40... Kf6 {[%clk 0:01:04.4]} 41. Kf1 {[%clk 0:00:28]} 41...
Ke5 {[%clk 0:01:04.7]} 42. Ke1 {[%clk 0:00:28.5]} 42... Kd5 {[%clk 0:00:32.8]}
43. Kd2 {[%clk 0:00:28.6]} 43... Kc4 {[%clk 0:00:33.5]} 44. Kc2 {[%clk
0:00:25.2]} 44... g5 {[%clk 0:00:31.4]} 45. Kd2 {[%clk 0:00:22.9]} 45... Kb3
{[%clk 0:00:31.6]} 46. Kd3 {[%clk 0:00:22.3]} 46... Kb2 {[%clk 0:00:32.1]} 47.
Ke3 {[%clk 0:00:16.4]} 47... Kxc3 {[%clk 0:00:31.6]} 48. Kxf3 {[%clk 0:00:17.3]}
48... Kxb4 {[%clk 0:00:28]} 49. Ke4 {[%clk 0:00:17.9]} 49... Kxc5 {[%clk
0:00:28.5]} 50. Ke5 {[%clk 0:00:13.4]} 50... Kb4 {[%clk 0:00:19.8]} 51. f4
{[%clk 0:00:14.3]} 51... gxf4 {[%clk 0:00:20]} 52. Kxf4 {[%clk 0:00:14]} 52...
c5 {[%clk 0:00:20.5]} 53. Ke3 {[%clk 0:00:12.3]} 53... Kb3 {[%clk 0:00:11.9]}
54. g5 {[%clk 0:00:12.1]} 54... c4 {[%clk 0:00:12.1]} 55. g6 {[%clk 0:00:12.6]}
55... c3 {[%clk 0:00:10.3]} 56. g7 {[%clk 0:00:12.9]} 56... c2 {[%clk
0:00:10.3]} 57. g8=Q+ {[%clk 0:00:13]} 57... Kb2 {[%clk 0:00:10.9]} 58. Qg7+
{[%clk 0:00:09.3]} 58... Kb1 {[%clk 0:00:10.6]} 59. Qg6 {[%clk 0:00:09]} 59...
Kb2 {[%clk 0:00:09.5]} 60. Qf6+ {[%clk 0:00:09.3]} 60... Kb1 {[%clk 0:00:09.7]}
61. Qf5 {[%clk 0:00:09.3]} 61... Kb2 {[%clk 0:00:09.8]} 62. Qe5+ {[%clk
0:00:09.8]} 62... Kb1 {[%clk 0:00:09.7]} 63. Qe4 {[%clk 0:00:10.1]} 63... Kb2
{[%clk 0:00:09.7]} 64. Qb4+ {[%clk 0:00:10.1]} 64... Ka2 {[%clk 0:00:09.3]} 65.
Qc3 {[%clk 0:00:09.3]} 65... Kb1 {[%clk 0:00:09.1]} 66. Qb3+ {[%clk 0:00:08.8]}
66... Ka1 {[%clk 0:00:09]} 67. Qxc2 {[%clk 0:00:08.4]} 67... b5 {[%clk
0:00:09.4]} 68. axb6 {[%clk 0:00:09.3]} 68... a5 {[%clk 0:00:09.9]} 69. b7
{[%clk 0:00:09.7]} 69... a4 {[%clk 0:00:10.5]} 70. b8=Q {[%clk 0:00:10.2]} 1-0

[Event "*** Titled Tuesday Blitz"]
[Site "Chess.com"]
[Date "2020.12.29"]
[Round "1"]
[White "LiderChessAcademy"]
[Black "lamomiablanca"]
[Result "1-0"]
[WhiteElo "2608"]
[BlackElo "2309"]
[TimeControl "180+1"]
[EndTime "10:08:32 PST"]
[Termination "LiderChessAcademy won by resignation"]

1. d4 {[%clk 0:03:00.9]} 1... Nf6 {[%clk 0:02:58.2]} 2. c4 {[%clk 0:03:00.7]}
2... b6 {[%clk 0:02:56.9]} 3. f3 {[%clk 0:02:55]} 3... Nc6 {[%clk 0:02:28.3]} 4.
Nc3 {[%clk 0:02:28.4]} 4... e5 {[%clk 0:02:19]} 5. d5 {[%clk 0:02:27.8]} 5...
Nb8 {[%clk 0:02:10.2]} 6. e4 {[%clk 0:02:01.2]} 6... Bc5 {[%clk 0:02:08.6]} 7.
Bd3 {[%clk 0:01:42.6]} 7... O-O {[%clk 0:02:00.1]} 8. Nge2 {[%clk 0:01:37]} 8...
Nh5 {[%clk 0:01:57.8]} 9. Na4 {[%clk 0:01:28.4]} 9... Bb4+ {[%clk 0:01:50.1]}
10. Kf2 {[%clk 0:01:19]} 10... a5 {[%clk 0:01:30.1]} 11. a3 {[%clk 0:01:11.6]}
11... Bd6 {[%clk 0:01:25]} 12. Rf1 {[%clk 0:00:52.1]} 12... Na6 {[%clk
0:01:12.1]} 13. Be3 {[%clk 0:00:48.9]} 13... g6 {[%clk 0:01:03.1]} 14. Qd2
{[%clk 0:00:36.7]} 14... f5 {[%clk 0:01:00.8]} 15. Kg1 {[%clk 0:00:34.7]} 15...
f4 {[%clk 0:00:59.4]} 16. Bf2 {[%clk 0:00:34.9]} 16... g5 {[%clk 0:00:58.2]} 17.
Rfc1 {[%clk 0:00:32.4]} 17... Nc5 {[%clk 0:00:52.8]} 18. Bc2 {[%clk 0:00:32.3]}
18... Nxa4 {[%clk 0:00:51.9]} 19. Bxa4 {[%clk 0:00:33.2]} 19... Qe7 {[%clk
0:00:49.1]} 20. Nc3 {[%clk 0:00:25.6]} 20... Nf6 {[%clk 0:00:46.5]} 21. Nb5
{[%clk 0:00:24.9]} 21... Bc5 {[%clk 0:00:38.4]} 22. Bxc5 {[%clk 0:00:24.9]}
22... Qxc5+ {[%clk 0:00:38.4]} 23. Qf2 {[%clk 0:00:25.5]} 23... Ne8 {[%clk
0:00:27.7]} 24. Qxc5 {[%clk 0:00:22.7]} 24... bxc5 {[%clk 0:00:28.6]} 25. Bc2
{[%clk 0:00:17]} 25... Ba6 {[%clk 0:00:25.6]} 26. Bd3 {[%clk 0:00:16.6]} 26...
c6 {[%clk 0:00:23.1]} 27. Nc3 {[%clk 0:00:13.4]} 27... Rb8 {[%clk 0:00:21.2]}
28. Rab1 {[%clk 0:00:13.3]} 28... Nc7 {[%clk 0:00:19.9]} 29. Na4 {[%clk
0:00:13.1]} 29... cxd5 {[%clk 0:00:17.9]} 30. exd5 {[%clk 0:00:11.3]} 30... d6
{[%clk 0:00:18.2]} 31. b3 {[%clk 0:00:10.5]} 31... Ne8 {[%clk 0:00:18.3]} 32.
Nc3 {[%clk 0:00:10.7]} 32... Nf6 {[%clk 0:00:18.6]} 33. Rb2 {[%clk 0:00:09.3]}
33... Kf7 {[%clk 0:00:18.1]} 34. Rcb1 {[%clk 0:00:09.8]} 34... Ke7 {[%clk
0:00:18]} 35. h3 {[%clk 0:00:06.9]} 35... Rb7 {[%clk 0:00:17.3]} 36. Bf5 {[%clk
0:00:06.8]} 36... Rfb8 {[%clk 0:00:17.1]} 37. Bd3 {[%clk 0:00:06.6]} 37... h5
{[%clk 0:00:16.7]} 38. Kf2 {[%clk 0:00:06.9]} 38... g4 {[%clk 0:00:16.9]} 39.
hxg4 {[%clk 0:00:07.8]} 39... hxg4 {[%clk 0:00:17.8]} 40. a4 {[%clk 0:00:08.5]}
40... g3+ {[%clk 0:00:18.2]} 41. Ke2 {[%clk 0:00:08.3]} 41... Ne8 {[%clk
0:00:17.1]} 42. Nb5 {[%clk 0:00:07.8]} 42... Bxb5 {[%clk 0:00:17]} 43. axb5
{[%clk 0:00:08.3]} 43... Kd8 {[%clk 0:00:16.5]} 44. Ra1 {[%clk 0:00:08.7]} 44...
Ra7 {[%clk 0:00:16.1]} 45. Rba2 {[%clk 0:00:09.2]} 45... Rba8 {[%clk 0:00:16.6]}
46. Bf5 {[%clk 0:00:05.6]} 46... Kc7 {[%clk 0:00:16.8]} 47. Be6 {[%clk
0:00:05.8]} 47... Nf6 {[%clk 0:00:17.1]} 48. Rh1 {[%clk 0:00:06.1]} 48... Rf8
{[%clk 0:00:15.8]} 49. Rh6 {[%clk 0:00:06.4]} 49... Kb6 {[%clk 0:00:15.6]} 50.
Kd3 {[%clk 0:00:06.8]} 50... Kc7 {[%clk 0:00:15.7]} 51. Ra1 {[%clk 0:00:07]}
51... Kb6 {[%clk 0:00:15.5]} 52. Rg6 {[%clk 0:00:07.5]} 52... Kc7 {[%clk
0:00:13.5]} 53. Rg7+ {[%clk 0:00:07.8]} 53... Kb6 {[%clk 0:00:13.7]} 54. Rxa7
{[%clk 0:00:08.4]} 54... Kxa7 {[%clk 0:00:13.3]} 55. Rxa5+ {[%clk 0:00:09]}
55... Kb6 {[%clk 0:00:14.2]} 56. Ra6+ {[%clk 0:00:09.4]} 56... Kc7 {[%clk
0:00:14.5]} 57. Rc6+ {[%clk 0:00:10]} 57... Kb7 {[%clk 0:00:14]} 58. Rxd6 {[%clk
0:00:10.5]} 58... e4+ {[%clk 0:00:14.3]} 59. Ke2 {[%clk 0:00:09]} 59... Nh5
{[%clk 0:00:15]} 60. Bg4 {[%clk 0:00:07.1]} 60... exf3+ {[%clk 0:00:15]} 61.
Kxf3 {[%clk 0:00:06.6]} 61... Nf6 {[%clk 0:00:14]} 62. Re6 {[%clk 0:00:07]}
62... Nxg4 {[%clk 0:00:12.6]} 63. Kxg4 {[%clk 0:00:07.9]} 63... f3 {[%clk
0:00:13.2]} 64. gxf3 {[%clk 0:00:08.6]} 64... g2 {[%clk 0:00:12.5]} 65. Re1
{[%clk 0:00:07.7]} 65... Rh8 {[%clk 0:00:12.2]} 66. Rg1 {[%clk 0:00:05.2]} 1-0

[Event "*** Titled Tuesday Blitz"]
[Site "Chess.com"]
[Date "2020.12.29"]
[Round "1"]
[White "zurzan"]
[Black "KhamzinOlzhas"]
[Result "0-1"]
[WhiteElo "2053"]
[BlackElo "2487"]
[TimeControl "180+1"]
[EndTime "10:08:41 PST"]
[Termination "KhamzinOlzhas won on time"]

1. f4 {[%clk 0:03:00.9]} 1... c5 {[%clk 0:02:59.2]} 2. Nf3 {[%clk 0:03:00.3]}
2... Nc6 {[%clk 0:02:59.2]} 3. g3 {[%clk 0:03:00.6]} 3... g6 {[%clk 0:02:59.2]}
4. Bg2 {[%clk 0:03:01.5]} 4... Bg7 {[%clk 0:02:59.6]} 5. O-O {[%clk 0:03:02.3]}
5... Nf6 {[%clk 0:03:00]} 6. d3 {[%clk 0:03:03.2]} 6... d5 {[%clk 0:02:59.7]} 7.
c3 {[%clk 0:03:04.1]} 7... d4 {[%clk 0:02:59.3]} 8. e4 {[%clk 0:02:56.8]} 8...
dxe3 {[%clk 0:02:46.1]} 9. Bxe3 {[%clk 0:02:56.7]} 9... Qd6 {[%clk 0:02:26.5]}
10. Na3 {[%clk 0:02:48.9]} 10... Bf5 {[%clk 0:02:18.8]} 11. Ne1 {[%clk
0:02:34.1]} 11... Ng4 {[%clk 0:02:12.1]} 12. Nc4 {[%clk 0:02:28.6]} 12... Qd7
{[%clk 0:01:52.9]} 13. Bxc5 {[%clk 0:02:22]} 13... O-O {[%clk 0:01:48.2]} 14. h3
{[%clk 0:02:20.6]} 14... Nf6 {[%clk 0:01:46.7]} 15. g4 {[%clk 0:02:04]} 15...
Be6 {[%clk 0:01:46.5]} 16. Ne5 {[%clk 0:01:58.8]} 16... Nxe5 {[%clk 0:01:41.3]}
17. fxe5 {[%clk 0:01:59.7]} 17... Nd5 {[%clk 0:01:40.7]} 18. Bd4 {[%clk
0:01:50.4]} 18... Qc7 {[%clk 0:01:36.8]} 19. Qe2 {[%clk 0:01:43.7]} 19... Rfd8
{[%clk 0:01:30.4]} 20. Nc2 {[%clk 0:01:35]} 20... Nb6 {[%clk 0:01:18.5]} 21. c4
{[%clk 0:01:14.8]} 21... Rd7 {[%clk 0:00:58.3]} 22. Bc3 {[%clk 0:01:14]} 22...
Rad8 {[%clk 0:00:47.8]} 23. Rad1 {[%clk 0:01:13]} 23... Nxc4 {[%clk 0:00:40.5]}
24. dxc4 {[%clk 0:01:08]} 24... Bxc4 {[%clk 0:00:41.4]} 25. Rxd7 {[%clk
0:01:02.8]} 25... Rxd7 {[%clk 0:00:37.7]} 26. Qe3 {[%clk 0:00:35.1]} 26... Bxf1
{[%clk 0:00:35.9]} 27. Bxf1 {[%clk 0:00:36]} 27... b5 {[%clk 0:00:33.1]} 28. a3
{[%clk 0:00:35]} 28... Rd1 {[%clk 0:00:32.3]} 29. Kf2 {[%clk 0:00:33.2]} 29...
a6 {[%clk 0:00:28.3]} 30. Nb4 {[%clk 0:00:28.3]} 30... e6 {[%clk 0:00:16.1]} 31.
Bg2 {[%clk 0:00:28.3]} 31... Bf8 {[%clk 0:00:14.9]} 32. Nd3 {[%clk 0:00:23.1]}
32... Qd8 {[%clk 0:00:13.8]} 33. Bd4 {[%clk 0:00:21.7]} 33... Qc7 {[%clk
0:00:12.1]} 34. Be4 {[%clk 0:00:20.9]} 34... Qc2+ {[%clk 0:00:11.4]} 35. Kf3
{[%clk 0:00:17.9]} 35... Rf1+ {[%clk 0:00:11.1]} 36. Nf2 {[%clk 0:00:17.5]}
36... Qd1+ {[%clk 0:00:09.8]} 37. Kg3 {[%clk 0:00:15.3]} 37... Rg1+ {[%clk
0:00:09.4]} 38. Bg2 {[%clk 0:00:15.4]} 38... Qf1 {[%clk 0:00:08.7]} 39. Qf3
{[%clk 0:00:15.5]} 39... Qc1 {[%clk 0:00:06.9]} 40. Be3 {[%clk 0:00:14.9]} 40...
Qxb2 {[%clk 0:00:05.7]} 41. Ne4 {[%clk 0:00:14.3]} 41... Qxe5+ {[%clk
0:00:05.6]} 42. Bf4 {[%clk 0:00:13.8]} 42... Qb2 {[%clk 0:00:05]} 43. Kh2 {[%clk
0:00:09.1]} 43... Ra1 {[%clk 0:00:05.3]} 44. Bg5 {[%clk 0:00:05.2]} 44... Bg7
{[%clk 0:00:05.3]} 45. Nf6+ {[%clk 0:00:04.8]} 45... Kh8 {[%clk 0:00:04]} 46.
Nxh7 {[%clk 0:00:04]} 46... Kxh7 {[%clk 0:00:04]} 47. Qxf7 {[%clk 0:00:04]}
47... Ra2 {[%clk 0:00:03.3]} 48. Qf3 {[%clk 0:00:02.7]} 48... Qe5+ {[%clk
0:00:03.1]} 49. Bf4 {[%clk 0:00:02.6]} 49... Qf6 {[%clk 0:00:03.2]} 50. h4
{[%clk 0:00:02.7]} 50... e5 {[%clk 0:00:03.6]} 51. g5 {[%clk 0:00:02.7]} 51...
Qxf4+ {[%clk 0:00:03.7]} 52. Qxf4 {[%clk 0:00:03.6]} 52... exf4 {[%clk
0:00:04.5]} 53. Kh3 {[%clk 0:00:03.2]} 53... f3 {[%clk 0:00:04.7]} 54. Bxf3
{[%clk 0:00:03.2]} 54... Rxa3 {[%clk 0:00:05.6]} 55. Kg4 {[%clk 0:00:03.2]}
55... Rxf3 {[%clk 0:00:06.1]} 56. Kxf3 {[%clk 0:00:03.3]} 56... b4 {[%clk
0:00:07]} 57. Ke2 {[%clk 0:00:02.7]} 57... b3 {[%clk 0:00:07.9]} 58. Kd3 {[%clk
0:00:02.4]} 58... b2 {[%clk 0:00:08.8]} 59. Kc2 {[%clk 0:00:02.7]} 59... b1=Q+
{[%clk 0:00:09.7]} 60. Kxb1 {[%clk 0:00:02.8]} 60... a5 {[%clk 0:00:08.4]} 61.
Ka2 {[%clk 0:00:03.7]} 61... Bc3 {[%clk 0:00:06.5]} 62. Kb3 {[%clk 0:00:04.6]}
62... Bb4 {[%clk 0:00:06.8]} 63. Ka4 {[%clk 0:00:04.1]} 63... Kg7 {[%clk
0:00:07]} 64. Kb5 {[%clk 0:00:01.2]} 64... Kf7 {[%clk 0:00:07.4]} 65. Ka4 {[%clk
0:00:01.1]} 65... Ke6 {[%clk 0:00:07.7]} 66. Kb3 {[%clk 0:00:02]} 66... Kf5
{[%clk 0:00:07.7]} 67. Kc4 {[%clk 0:00:02.2]} 67... Kg4 {[%clk 0:00:07.7]} 0-1

[Event "*** Titled Tuesday Blitz"]
[Site "Chess.com"]
[Date "2020.12.29"]
[Round "1"]
[White "chess94cu"]
[Black "Cambek64"]
[Result "1-0"]
[WhiteElo "2589"]
[BlackElo "2290"]
[TimeControl "180+1"]
[EndTime "10:08:42 PST"]
[Termination "chess94cu won on time"]

1. d4 {[%clk 0:02:57.8]} 1... d6 {[%clk 0:02:58.1]} 2. Nf3 {[%clk 0:02:57.2]}
2... Nf6 {[%clk 0:02:58]} 3. g3 {[%clk 0:02:55.8]} 3... g6 {[%clk 0:02:56.8]} 4.
Bg2 {[%clk 0:02:55.9]} 4... Bg7 {[%clk 0:02:57.1]} 5. O-O {[%clk 0:02:56.6]}
5... O-O {[%clk 0:02:57]} 6. c4 {[%clk 0:02:57.4]} 6... c5 {[%clk 0:02:57]} 7.
Nc3 {[%clk 0:02:53.7]} 7... Nc6 {[%clk 0:02:57.3]} 8. d5 {[%clk 0:02:50.3]} 8...
Na5 {[%clk 0:02:57.3]} 9. Nd2 {[%clk 0:02:46.9]} 9... a6 {[%clk 0:02:56.1]} 10.
a4 {[%clk 0:02:30.3]} 10... b6 {[%clk 0:02:52.1]} 11. Qc2 {[%clk 0:02:27.8]}
11... Rb8 {[%clk 0:02:45.2]} 12. e4 {[%clk 0:02:08.2]} 12... e5 {[%clk
0:02:32.7]} 13. Rb1 {[%clk 0:01:58.5]} 13... Nd7 {[%clk 0:02:29.3]} 14. b4
{[%clk 0:01:55.5]} 14... cxb4 {[%clk 0:02:28.5]} 15. Rxb4 {[%clk 0:01:56.4]}
15... Nc5 {[%clk 0:02:28.1]} 16. Re1 {[%clk 0:01:16]} 16... f5 {[%clk
0:02:25.7]} 17. Nf1 {[%clk 0:01:14.5]} 17... f4 {[%clk 0:02:22.8]} 18. f3 {[%clk
0:01:12.9]} 18... h5 {[%clk 0:02:19.2]} 19. Bd2 {[%clk 0:01:10.8]} 19... g5
{[%clk 0:02:15]} 20. Reb1 {[%clk 0:01:07.9]} 20... g4 {[%clk 0:02:12]} 21. gxf4
{[%clk 0:00:50]} 21... exf4 {[%clk 0:02:11]} 22. Ne2 {[%clk 0:00:48.5]} 22...
gxf3 {[%clk 0:01:16.8]} 23. Bxf3 {[%clk 0:00:49.4]} 23... Bg4 {[%clk 0:01:16.2]}
24. Bxg4 {[%clk 0:00:40.5]} 24... hxg4 {[%clk 0:01:15.5]} 25. Bxf4 {[%clk
0:00:35.1]} 25... Rxf4 {[%clk 0:01:07.5]} 26. Nxf4 {[%clk 0:00:33.5]} 26... Bd4+
{[%clk 0:00:58.9]} 27. Kh1 {[%clk 0:00:31]} 27... Qe7 {[%clk 0:00:57.1]} 28. Ng3
{[%clk 0:00:29.1]} 28... Re8 {[%clk 0:00:39.9]} 29. Qe2 {[%clk 0:00:16.7]} 29...
Nxe4 {[%clk 0:00:36.4]} 30. Qxg4+ {[%clk 0:00:14.8]} 30... Qg5 {[%clk
0:00:28.4]} 31. Qxg5+ {[%clk 0:00:14.4]} 31... Nxg5 {[%clk 0:00:27.2]} 32. Kg2
{[%clk 0:00:13.5]} 32... Re3 {[%clk 0:00:25.4]} 33. Nfe2 {[%clk 0:00:10.4]}
33... Be5 {[%clk 0:00:24]} 34. Rxb6 {[%clk 0:00:09.4]} 34... Nxc4 {[%clk
0:00:23.7]} 35. Rc6 {[%clk 0:00:09]} 35... Nd2 {[%clk 0:00:12.8]} 36. Rb7 {[%clk
0:00:08.2]} 36... Nf7 {[%clk 0:00:10.7]} 37. Rc8+ {[%clk 0:00:06.6]} 37... Kg7
{[%clk 0:00:11.2]} 38. Rcc7 {[%clk 0:00:07.3]} 38... Rf3 {[%clk 0:00:11.4]} 39.
Ne4 {[%clk 0:00:04.2]} 39... Rf5 {[%clk 0:00:10]} 40. Nxd2 {[%clk 0:00:03.9]}
40... Rg5+ {[%clk 0:00:09.9]} 41. Ng3 {[%clk 0:00:04.2]} 41... Bxg3 {[%clk
0:00:08.5]} 42. hxg3 {[%clk 0:00:03.9]} 42... Kg6 {[%clk 0:00:07.9]} 43. Rxf7
{[%clk 0:00:02.8]} 43... Rxd5 {[%clk 0:00:08.8]} 44. Rg7+ {[%clk 0:00:03]} 44...
Kf5 {[%clk 0:00:07.9]} 45. Nf3 {[%clk 0:00:03.9]} 45... Ke4 {[%clk 0:00:07.9]}
46. Rbe7+ {[%clk 0:00:03.9]} 46... Kd3 {[%clk 0:00:04.7]} 47. Ra7 {[%clk
0:00:04.8]} 47... a5 {[%clk 0:00:03.8]} 48. Ra6 {[%clk 0:00:04.7]} 48... Kc2
{[%clk 0:00:02.5]} 49. Rd7 {[%clk 0:00:04.5]} 49... Rd3 {[%clk 0:00:02.2]} 50.
Rxa5 {[%clk 0:00:02.6]} 50... Ra3 {[%clk 0:00:03.1]} 51. Rd5 {[%clk 0:00:02.6]}
51... Kc3 {[%clk 0:00:01.4]} 52. R7xd6 {[%clk 0:00:03.5]} 52... Ra2+ {[%clk
0:00:01.8]} 53. Kh3 {[%clk 0:00:03]} 53... Rxa4 {[%clk 0:00:02.7]} 54. Rd3+
{[%clk 0:00:02.9]} 54... Kc4 {[%clk 0:00:01.5]} 55. R3d4+ {[%clk 0:00:03.8]}
55... Kc5 {[%clk 0:00:01.3]} 56. Rxa4 {[%clk 0:00:04.7]} 56... Kxd6 {[%clk
0:00:01.5]} 57. g4 {[%clk 0:00:05.6]} 1-0